Cogmind - Beta 13 @@@ ROGUE MODE // 2024.07.04 @ 19:18:55 Player: Cinder Result: Destroyed by B-75 Beast with Heavy Machine Gun Performance ------------- Evolutions (5) 2500 Regions Visited (10) 2000 Robots Destroyed (93) 465 Value Destroyed (4068) 4068 Prototype IDs (0) 0 Alien Tech Used (0) 0 Bonus (1127) 1127 TOTAL SCORE: 10160 Bonus ------- High Alert Combat Kills 113 Follower Combat Kills 731 Entered DSFs 500 Friendly Fire -217 Cogmind --------- Core Integrity 0/1000 Matter 51/300 Energy 315/315 System Corruption 7% Temperature Cool (12) Movement Walking (190) Ox1 Location -5/Extension Parts ------- > --- POWER (2) -------- Neutrino Core > --- PROPULSION (5) --- Carbon-fiber Leg Carbon-fiber Leg Flexi-carbon Leg Flexi-carbon Leg Flexi-carbon Leg > --- UTILITY (5) ------ Huge Storage Unit Improved Targeting Computer Core Analyzer Improved Hacking Suite > --- WEAPON (5) ------- (None) > --- INVENTORY (25) --- Improved Treads Improved Treads Improved Treads Flexi-carbon Leg Improved Heat Sink Improved Transmission Jammer Tesla Rifle Wave Gun Wave Gun Heavy Beamcaster Plasma Cannon Plasma Cannon KE Penetrator Peak State ------------ > --- POWER ------------ Backup Power III Antimatter Reactor > --- PROPULSION ------- Improved Medium Treads Heavy Treads Heavy Treads > --- UTILITY ---------- Huge Storage Unit Improved Targeting Computer Core Analyzer Transmission Jammer Improved Hacking Suite > --- WEAPON ----------- Heavy Laser Long-range Proton Cannon Magnetic Acceleration Cannon Enhanced Gauss Cannon Long-range Missile Launcher > --- INVENTORY -------- Improved Ion Engine Light Nuclear Core Neutrino Core Improved Heat Sink Heavy Beamcaster Plasma Cannon Plasma Cannon Autogun [Rating: 84] Favorites ----------- Power Light Nuclear Core Engine Improved Ion Engine Power Core Light Nuclear Core Reactor Antimatter Reactor Propulsion Heavy Treads Treads Heavy Treads Leg Aluminum Leg Wheel Armored Huge Wheel Flight Unit Nuclear Pulse Thruster Utility Improved Targeting Computer Device Transmission Jammer Storage High-capacity Storage Unit Processor Improved Targeting Computer Hackware Improved Hacking Suite Weapon Autogun Energy Gun Backup Laser III Energy Cannon Heavy Phase Cannon Ballistic Gun Autogun Ballistic Cannon Enhanced Gauss Cannon Launcher Long-range Missile Launcher Special Melee Weapon Improved Datajack Build | -11 -10 -9 -8 -7 -7 -6 -5 -5 -5 -5 ------- Run | Yrd Mat Mat Mat Fac DSF Fac Fac Was Fac Ext Slots Evolved 10 | . . 2 2 2 . 2 2 . . . Power 1 | . . . . 1 . . . . . . Propulsion 3 | . . 2 1 . . . . . . . Utility 3 | . . . 1 . . 1 1 . . . Weapon 3 | . . . . 1 . 1 1 . . . Parts Attached 126 | 6 1 2 31 1 7 16 27 5 9 21 Power 23 | 1 . . 4 . 1 2 8 1 3 3 Engine 12 | 1 . . 3 . . 2 5 . 1 . Core 10 | . . . 1 . 1 . 3 . 2 3 Reactor 1 | . . . . . . . . 1 . . Propulsion 47 | 2 . . 13 . 3 6 6 2 1 14 Treads 14 | 2 . . 1 . . 3 3 2 1 2 Leg 18 | . . . 6 . . . . . . 12 Wheel 12 | . . . 6 . 3 . 3 . . . Hover . | . . . . . . . . . . . Flight 3 | . . . . . . 3 . . . . Utility 14 | 1 1 2 3 . 1 1 2 . 2 1 Device 6 | . . . 2 . . . 2 . 1 1 Storage 4 | 1 . 2 . . . . . . 1 . Processor 2 | . . . 1 . . 1 . . . . Hackware 2 | . 1 . . . 1 . . . . . Protection . | . . . . . . . . . . . Artifact . | . . . . . . . . . . . Weapon 42 | 2 . . 11 1 2 7 11 2 3 3 Energy Gun 13 | 1 . . 4 . 2 . 6 . . . Energy Cannon 5 | . . . . . . 2 1 1 1 . Ballistic Gun 8 | 1 . . 2 . . 2 1 . 1 1 Ballistic Cannon 7 | . . . 3 . . . 1 1 1 1 Launcher 8 | . . . 2 . . 3 2 . . 1 Special Weapon . | . . . . . . . . . . . Impact Weapon . | . . . . . . . . . . . Slashing Weapon . | . . . . . . . . . . . Piercing Weapon . | . . . . . . . . . . . Special Melee Weapon 1 | . . . . 1 . . . . . . Unidentified Prototypes . | . . . . . . . . . . . Parts Lost 78 | . . . 24 . 13 1 25 . 4 11 Power 16 | . . . 4 . 2 1 5 . 3 1 Propulsion 28 | . . . 9 . 7 . 7 . 1 4 Utility 2 | . . . 1 . . . 1 . . . Weapon 32 | . . . 10 . 4 . 12 . . 6 Highest Loss Streak 13 | . . . 13 . 9 1 13 . 2 4 To Critical Strikes 2 | . . . 1 . . . . . . 1 Average Slot Usage (%) 75 | . 98 77 72 83 61 73 75 72 76 77 Engine 4 | . 14 11 7 7 1 5 2 5 5 . Core 2 | . . . . . 3 . 2 . 1 10 Treads 11 | . 28 22 10 . . 1 18 8 15 6 Leg 4 | . . . 5 38 17 . . . . 9 Wheel 2 | . . . 8 . 5 6 2 9 . . Flight 1 | . . . . . . 15 . . . . Device 2 | . . . 5 . . . 4 5 5 2 Storage 5 | . 14 11 9 7 7 6 4 . 2 5 Processor 9 | . . . 2 7 7 13 11 11 11 11 Hackware 6 | . 13 11 9 7 7 6 5 5 5 5 Energy Gun 4 | . 14 11 3 . 3 . 5 5 4 4 Energy Cannon 4 | . . . . . . 8 6 2 3 4 Ballistic Gun 3 | . 14 11 5 . . 3 3 . . 6 Ballistic Cannon 3 | . . . 3 7 4 . 1 3 8 4 Launcher 1 | . . . 1 . . 4 1 5 2 . Naked Turns . | . . . . . . . . . . . Heaviest Build 137 | 14 14 49 52 49 53 86 86 53 137 129 Greatest Support 170 | 40 40 40 60 55 56 28 130 140 170 140 Greatest Overweight (x) 6 | . . 1 2 . 2 3 3 . . 6 Average Overweight (x) . | . . . . . . 1 . . . 1 Largest Inventory Capacity 25 | 8 8 20 20 20 20 20 20 5 25 25 Average Capacity 18 | 6 8 15 20 20 20 20 19 5 14 25 Most Carried 20 | 6 6 9 20 20 20 20 20 5 11 18 Average Carried 12 | 3 5 6 13 18 18 18 18 3 6 10 Final Capacity 25 | 8 8 20 20 20 20 20 5 5 25 25 Final Carried 20 | 4 6 8 15 20 20 20 5 3 8 13 Class Distribution -------------------- 27% | Gunner 25% | Mutant 17% | Scavenger-Mutant 16% | Scavenger-Gunner 13% | Scavenger-Bomber Dominant Class ---------------- Mutant | -10/Materials Mutant | -9/Materials Mutant | -8/Materials Scavenger-Mutant | -7/Factory Mutant | -7/DSF Gunner | -6/Factory Gunner | -5/Factory Scavenger-Bomber | -5/Waste Scavenger-Bomber | -5/Factory Scavenger-Gunner | -5/Extension Resources | -11 -10 -9 -8 -7 -7 -6 -5 -5 -5 -5 ----------- Run | Yrd Mat Mat Mat Fac DSF Fac Fac Was Fac Ext Matter Collected 2319 | 255 39 . 448 . 109 217 457 178 141 475 Remotely . | . . . . . . . . . . . Salvage Created 3437 | . 114 . 705 . 108 490 1225 . 143 652 Parts 170 | . 6 . 46 . 3 32 54 . 8 21 Haulers Intercepted . | . . . . . . . . . . . Recyclers Shooed 6 | . . . 1 . . . 2 . 1 2 Parts Field Recycled . | . . . . . . . . . . . Retrieved Matter . | . . . . . . . . . . . Parts Self-Destructed . | . . . . . . . . . . . Prevented . | . . . . . . . . . . . Kills | -11 -10 -9 -8 -7 -7 -6 -5 -5 -5 -5 ------- Run | Yrd Mat Mat Mat Fac DSF Fac Fac Was Fac Ext Combat Hostiles Destroyed 72 | . 2 . 19 . 3 10 21 . 4 13 Guns 13 | . 1 . 4 . 1 . 4 . 2 1 Cannons 28 | . . . 5 . 2 6 9 . . 6 AOE 31 | . 1 . 10 . . 4 8 . 2 6 Classes Destroyed 15 | . 2 . 5 . 2 3 2 . . 1 Worker 4 | . . . 1 . . 2 1 . . . Builder 6 | . . . 4 . . . 1 . . 1 Recycler 5 | . . . 1 . . . 3 . . 1 Mechanic 2 | . . . . . . 1 1 . . . Operator 2 | . 1 . . . . . 1 . . . Watcher 1 | . . . 1 . . . . . . . Swarmer 7 | . . . 3 . . 4 . . . . Grunt 38 | . 2 . 16 . . 3 9 . 2 6 Brawler 2 | . . . . . . 1 1 . . . Duelist 1 | . . . . . . . 1 . . . Sentry 8 | . . . . . 1 1 . . . 6 Specialist 2 | . . . . . 2 . . . . . Hunter 6 | . . . . . . . 6 . . . Programmer 7 | . . . . . . 1 4 . 2 . Behemoth 1 | . . . . . . . . . . 1 Butcher 1 | . . . . . . . . . . 1 Best Kill Streak 10 | . 2 . 10 . 2 5 10 . 2 9 Combat Bots Only 7 | . 2 . 5 . 2 4 7 . 2 7 Max Kills in Single Turn 5 | . 1 . 2 . 1 5 3 . 2 3 Gunslinging . | . . . . . . . . . . . Exploded 4 | . 1 . 2 . . 4 2 . 2 2 Melee . | . . . . . . . . . . . Uniques/NPCs Destroyed . | . . . . . . . . . . . Combat | -11 -10 -9 -8 -7 -7 -6 -5 -5 -5 -5 -------- Run | Yrd Mat Mat Mat Fac DSF Fac Fac Was Fac Ext Hostile Shots Fired 884 | . 28 . 200 . 168 101 235 . 40 112 Missed 217 | . 7 . 36 . 49 36 50 . 12 27 Damage Taken 12015 | . 265 . 2447 . 1803 818 3797 . 913 1972 Core 2028 | . 20 . 429 . 439 139 569 . 104 328 Absorbed by Shields . | . . . . . . . . . . . Regen/Repaired (Parts) 389 | . . . . . . . . 350 39 . Core Remaining (%) 72 | 100 92 100 22 . 37 83 . . . . Volleys Fired 188 | . 8 . 47 . 20 19 55 . 9 30 Largest 5 | . 2 . 2 . 2 4 5 . 5 5 Hottest 303 | . 60 . 120 . 109 218 299 . 303 233 Shots Fired 387 | . 16 . 76 . 31 42 115 . 29 78 Gun 180 | . 16 . 44 . 17 14 38 . 15 36 Cannon 165 | . . . 20 . 14 28 62 . 13 28 Launcher 42 | . . . 12 . . . 15 . 1 14 Special . | . . . . . . . . . . . Kinetic 174 | . 8 . 47 . 14 14 36 . 16 39 Thermal 125 | . . . 5 . 10 19 56 . 10 25 Explosive 42 | . . . 12 . . . 15 . 1 14 Electromagnetic 46 | . 8 . 12 . 7 9 8 . 2 . Robot Hit Streak 17 | . 6 . 13 . 14 6 13 . 6 17 Robot Miss Streak 7 | . 3 . 7 . 2 3 3 . 3 2 Penetration Max . | . . . . . . . . . . . Secondary Targets . | . . . . . . . . . . . Shots Hit Robots 259 | . 11 . 51 . 26 22 76 . 15 58 Core Hits 197 | . 4 . 52 . 9 15 64 . 7 46 Critical Kills . | . . . . . . . . . . . Critical Parts Destroyed 2 | . . . 1 . . 1 . . . . Critical Strikes 9 | . . . 3 . 1 1 1 . 1 2 Burn 2 | . . . 1 . . . 1 . . . Destroy 2 | . . . 1 . . 1 . . . . Blast 5 | . . . 1 . 1 . . . 1 2 Melee Attacks 1 | . . . . . 1 . . . . . Impact . | . . . . . . . . . . . Slashing . | . . . . . . . . . . . Piercing . | . . . . . . . . . . . Sneak Attacks . | . . . . . . . . . . . Combat Hostiles . | . . . . . . . . . . . Follow-up Attacks . | . . . . . . . . . . . Damage Inflicted 11637 | . 195 . 2233 . 498 1163 4076 . 577 2895 Guns 1962 | . 134 . 457 . 196 142 494 . 159 380 Cannons 3685 | . . . 331 . 302 534 1489 . 236 793 Explosions 5939 | . 61 . 1445 . . 487 2084 . 182 1680 Melee . | . . . . . . . . . . . Ramming 51 | . . . . . . . 9 . . 42 Kinetic 2475 | . 40 . 515 . 302 142 597 . 241 638 Thermal 3138 | . 61 . 79 . 129 906 1297 . 131 535 Explosive 5391 | . . . 1445 . . . 2084 . 182 1680 Electromagnetic 582 | . 94 . 194 . 67 115 89 . 23 . Impact . | . . . . . . . . . . . Slashing . | . . . . . . . . . . . Piercing . | . . . . . . . . . . . Highest Corruption 17 | . . . . . . . 5 5 17 17 Average Corruption 6 | . . . . . . . 1 5 6 10 Corruption Purged 10 | . . . . . . . . . . 10 Corruption Blocked . | . . . . . . . . . . . Effects 82 | . . . . . . . 12 6 31 33 Message Errors 19 | . . . . . . . 4 1 10 4 Matter Fused 15 | . . . . . . . 3 1 5 6 Heat Flow Errors 5 | . . . . . . . 1 . 2 2 Energy Discharges 7 | . . . . . . . 1 1 3 2 Parts Rejected 5 | . . . . . . . 1 . 3 1 Parts Fused 1 | . . . . . . . . . 1 . Data Loss (minor) 13 | . . . . . . . 1 1 3 8 Data Loss (major) 9 | . . . . . . . . 2 2 5 Misfires 3 | . . . . . . . 1 . 1 1 Alerts 2 | . . . . . . . . . . 2 Misdirections 1 | . . . . . . . . . 1 . Weapon Failures 2 | . . . . . . . . . . 2 Overload Shots . | . . . . . . . . . . . Overflow Damage 305 | . . . 46 . . 54 113 . 26 66 Projectiles 74 | . . . 4 . . 6 46 . 18 . Explosions 219 | . . . 42 . . 48 67 . 8 54 Melee 12 | . . . . . . . . . . 12 Knockbacks 17 | . . . 2 . 3 . 8 . 3 1 Impact 1 | . . . . . . . . . . 1 Kinetic 15 | . . . 2 . 3 . 8 . 2 . Secondary 1 | . . . . . . . . . 1 . Self-Inflicted Damage 590 | . 54 . 107 . . . 248 . . 181 Shots 15 | . 1 . 3 . . . 7 . . 4 Rammed 3 | . 1 . . . . . 2 . . . Targets Rammed 4 | . 1 . . . . . 2 . . 1 Kicked 1 | . . . . . . . . . . 1 Crushed . | . . . . . . . . . . . Highest Temperature 544 | . 37 . 481 . 16 544 533 . 231 479 Average Temperature 159 | . 21 . 145 . 9 223 172 . 73 181 Received Heat Transfer 2955 | . 75 . 1278 . 324 42 738 . 57 441 Effects 41 | . . . 7 . . 7 13 . . 14 Shutdowns 12 | . . . 3 . . 1 3 . . 5 Energy Bleed 4 | . . . 1 . . . 2 . . 1 Interference 12 | . . . 1 . . . 5 . . 6 Short Circuit 1 | . . . 1 . . . . . . . Damage (minor) 5 | . . . 1 . . . 2 . . 2 Damage (major) 6 | . . . . . . 6 . . . . Damage (core) 1 | . . . . . . . 1 . . . Siege Activations 1 | . . . . . . . . . . 1 Total Turns 111 | . . . . . . . . . . 111 Longest Duration 111 | . . . . . . . . . . 111 Robots Corrupted . | . . . . . . . . . . . Combat Hostiles . | . . . . . . . . . . . Parts Fried 1 | . . . . . 1 . . . . . Impact Corruptions 1 | . . . . . . . . . . 1 Robots Melted . | . . . . . . . . . . . Combat Hostiles . | . . . . . . . . . . . Parts Melted 4 | . . . . . . 1 3 . . . Heat Transferred 4232 | . 100 . 259 . 333 950 1517 . 296 777 Parts Sabotaged . | . . . . . . . . . . . Parts Stolen . | . . . . . . . . . . . Parts Stripped . | . . . . . . . . . . . Power Chain Reactions 1 | . 1 . . . . . . . . . Alert | -11 -10 -9 -8 -7 -7 -6 -5 -5 -5 -5 ------- Run | Yrd Mat Mat Mat Fac DSF Fac Fac Was Fac Ext Peak Influence 769 | . 89 37 297 64 62 245 552 155 769 416 Initial 295 | . . 37 15 64 47 8 117 155 108 295 Average 209 | . 50 37 101 64 40 52 178 155 490 287 Maximum Alert Level 3 | . . . 1 . . 1 2 . 3 2 Low Security (%) 59 | 100 100 100 85 100 100 93 74 100 10 4 Level 1 25 | . . . 14 . . 6 14 . 27 94 Level 2 11 | . . . . . . . 11 . 48 . Level 3 2 | . . . . . . . . . 14 . Level 4 . | . . . . . . . . . . . Level 5 . | . . . . . . . . . . . High Security . | . . . . . . . . . . . Max Security . | . . . . . . . . . . . Squads Dispatched 21 | . 1 . 3 . 2 1 9 . 3 2 Investigation 4 | . 1 . 1 . . . 2 . . . Extermination 4 | . . . . . . . 2 . 2 . Reinforcement 10 | . . . 2 . 2 1 3 . . 2 Assault 1 | . . . . . . . . . 1 . Garrison 2 | . . . . . . . 2 . . . Intercept . | . . . . . . . . . . . Searches Triggered . | . . . . . . . . . . . Construction Impeded 3 | . . . 1 . . . 1 . . 1 Haulers Reinforced . | . . . . . . . . . . . Active Scanning Responses . | . . . . . . . . . . . Cargo Convoy Interrupts . | . . . . . . . . . . . Stealth | -11 -10 -9 -8 -7 -7 -6 -5 -5 -5 -5 --------- Run | Yrd Mat Mat Mat Fac DSF Fac Fac Was Fac Ext Distress Signals 6 | . 1 . 4 . . . 1 . . . Communications Jammed 3 | . . . . . . . 1 . 2 . Distress Signals 3 | . . . . . . . 1 . 2 . Times Spotted 133 | . 8 . 29 . 8 16 33 . 17 22 Peak Tracking Total 9 | . 4 . 9 . 4 6 6 . 4 8 Tactical Retreats 7 | . . . 3 . 1 . 2 . . 1 Traps | -11 -10 -9 -8 -7 -7 -6 -5 -5 -5 -5 ------- Run | Yrd Mat Mat Mat Fac DSF Fac Fac Was Fac Ext Traps Triggered 12 | . 1 . 1 . 2 . 2 . 4 2 Indirectly . | . . . . . . . . . . . Trap Hack Attempts . | . . . . . . . . . . . Triggered . | . . . . . . . . . . . Disarmed . | . . . . . . . . . . . Reprogrammed . | . . . . . . . . . . . Reused . | . . . . . . . . . . . Traps Extracted . | . . . . . . . . . . . Installed . | . . . . . . . . . . . Triggered . | . . . . . . . . . . . Machines | -11 -10 -9 -8 -7 -7 -6 -5 -5 -5 -5 ---------- Run | Yrd Mat Mat Mat Fac DSF Fac Fac Was Fac Ext Machines Disabled 14 | . 1 . 1 . . 3 6 . . 3 Max in Single Turn 3 | . 1 . 1 . . 3 2 . . 3 Garrison Access 2 | . . . . . . . . . 2 . Machines Repaired . | . . . . . . . . . . . Machines Dismantled . | . . . . . . . . . . . Machines Sabotaged . | . . . . . . . . . . . Overloaded Fab Kills . | . . . . . . . . . . . Hacking | -11 -10 -9 -8 -7 -7 -6 -5 -5 -5 -5 --------- Run | Yrd Mat Mat Mat Fac DSF Fac Fac Was Fac Ext Machines Accessed 22 | . . 1 1 3 . 3 6 . 4 4 Terminals 16 | . . . 1 2 . 2 4 . 3 4 Fabricators 1 | . . . . . . . 1 . . . Repair Stations 1 | . . . . . . . 1 . . . Recycling Units 1 | . . . . 1 . . . . . . Scanalyzers 2 | . . 1 . . . 1 . . . . Garrison Access 1 | . . . . . . . . . 1 . Total Hacks 42 | . . 2 3 5 . 7 13 . 4 8 Successful 22 | . . 2 . 2 . 6 4 . 4 4 Failed 20 | . . . 3 3 . 1 9 . . 4 Catastrophic 2 | . . . 1 . . . 1 . . . Database Lockouts . | . . . . . . . . . . . Manual . | . . . . . . . . . . . Terminals 28 | . . . 3 3 . 5 6 . 3 8 Fabricators 4 | . . . . . . . 4 . . . Repair Stations 3 | . . . . . . . 3 . . . Recycling Units 2 | . . . . 2 . . . . . . Scanalyzers 4 | . . 2 . . . 2 . . . . Garrison Access 1 | . . . . . . . . . 1 . Terminal Hacks 14 | . . . . 1 . 4 2 . 3 4 Record 6 | . . . . . . 3 1 . 1 1 Open Door 4 | . . . . . . . . . 1 3 Open DSF 4 | . . . . 1 . 1 1 . 1 . Fabricator Hacks 2 | . . . . . . . 2 . . . Load Schematic 1 | . . . . . . . 1 . . . Build 1 | . . . . . . . 1 . . . Repair Station Hacks . | . . . . . . . . . . . Recycling Unit Hacks 1 | . . . . 1 . . . . . . Retrieve Components 1 | . . . . 1 . . . . . . Scanalyzer 4 | . . 2 . . . 2 . . . . Insert Component 2 | . . 1 . . . 1 . . . . Analyze 2 | . . 1 . . . 1 . . . . Garrison Access Hacks 1 | . . . . . . . . . 1 . Seal Access 1 | . . . . . . . . . 1 . Unauthorized Hacks . | . . . . . . . . . . . Terminals . | . . . . . . . . . . . Fabricators . | . . . . . . . . . . . Repair Stations . | . . . . . . . . . . . Recycling Units . | . . . . . . . . . . . Scanalyzers . | . . . . . . . . . . . Garrison Access . | . . . . . . . . . . . Data Cores Recovered 1 | . 1 . . . . . . . . . Used . | . . . . . . . . . . . Hacking Detections 14 | . . . 1 2 . 2 5 . 1 3 Full Trace Events 3 | . . . 1 . . . 2 . . . Feedback Events 1 | . . . . . . . 1 . . . Corruption 1 | . . . . . . . 1 . . . Feedback Blocked . | . . . . . . . . . . . Robot Schematics Acquired . | . . . . . . . . . . . Robots Built . | . . . . . . . . . . . Authchips . | . . . . . . . . . . . Time . | . . . . . . . . . . . Total Robot Build Rating . | . . . . . . . . . . . Part Schematics Acquired 2 | . . 1 . . . 1 . . . . Parts Built . | . . . . . . . . . . . Authchips . | . . . . . . . . . . . Time 36 | . . . . . . . 36 . . . Total Part Build Rating . | . . . . . . . . . . . Parts Repaired . | . . . . . . . . . . . Time . | . . . . . . . . . . . Parts Recycled . | . . . . . . . . . . . Recycled Matter . | . . . . . . . . . . . Retrieved Matter . | . . . . . . . . . . . Retrieved Components 1 | . . . . 1 . . . . . . Parts Scanalyzed 2 | . . 1 . . . 1 . . . . Part Schematics Acquired 2 | . . 1 . . . 1 . . . . Parts Damaged . | . . . . . . . . . . . Bothacking | -11 -10 -9 -8 -7 -7 -6 -5 -5 -5 -5 ------------ Run | Yrd Mat Mat Mat Fac DSF Fac Fac Was Fac Ext Used RIF Installer . | . . . . . . . . . . . Robots Hacked 1 | . . . . . 1 . . . . . Non-combat . | . . . . . . . . . . . Combat 1 | . . . . . 1 . . . . . Robot Hacks Applied 1 | . . . . . 1 . . . . . parse_system 1 | . . . . . 1 . . . . . Relay Couplers Released 3 | . . . . . . . . . 3 . Machine Destruction 3 | . . . . . . . . . 3 . Fabnet Peak Effective % . | . . . . . . . . . . . Robots Rewired . | . . . . . . . . . . . Allies Hacked 2 | . . . . . . . . . 2 . Hacks Repelled . | . . . . . . . . . . . Allies | -11 -10 -9 -8 -7 -7 -6 -5 -5 -5 -5 -------- Run | Yrd Mat Mat Mat Fac DSF Fac Fac Was Fac Ext Total Allies 25 | . . . . . . . . 20 . 5 Largest Group 20 | . . . . . . . . 20 17 3 Highest-Rated Group 752 | . . . . . . . . 752 614 95 Highest-Rated Ally 46 | . . . . . . . . 46 46 39 Total Orders . | . . . . . . . . . . . Ally Attacks 149 | . . . . . . . . . 137 12 Total Damage 2979 | . . . . . . . . . 2794 185 Kills 27 | . . . . . . . . . 23 4 Allies Corrupted 1 | . . . . . . . . . 1 . Allies Melted . | . . . . . . . . . . . Intel | -11 -10 -9 -8 -7 -7 -6 -5 -5 -5 -5 ------- Run | Yrd Mat Mat Mat Fac DSF Fac Fac Was Fac Ext Robot Analysis Total . | . . . . . . . . . . . Derelict Logs Recovered . | . . . . . . . . . . . Drone Launches . | . . . . . . . . . . . Drone Recoveries . | . . . . . . . . . . . Exploration | -11 -10 -9 -8 -7 -7 -6 -5 -5 -5 -5 ------------- Run | Yrd Mat Mat Mat Fac DSF Fac Fac Was Fac Ext Turns Passed 5387 | 81 142 241 528 213 202 618 1247 234 1005 876 Spaces Moved 2699 | 48 69 136 197 170 74 373 656 168 580 228 Core 9 | 9 . . . . . . . . . . Treads 1441 | 39 69 136 95 . . 1 336 88 580 97 Legs 364 | . . . 37 170 26 . . . . 131 Wheels 885 | . . . 65 . 48 372 320 80 . . Hover . | . . . . . . . . . . . Flight . | . . . . . . . . . . . Fastest Speed 50 | 50 160 160 90 120 100 115 100 100 160 160 Average Speed 156 | 139 160 171 161 120 132 126 151 131 160 256 Slowest Speed 560 | 160 160 240 260 120 260 400 250 160 160 560 Overloaded Moves . | . . . . . . . . . . . Propulsion Burnouts . | . . . . . . . . . . . Robots Hopped . | . . . . . . . . . . . Cave-ins Triggered . | . . . . . . . . . . . Exploration Rate (%) 28 | 4 20 16 24 3 83 13 17 79 19 38 Regions Visited 10 Branch Regions 1 Pre-discovered Areas . | . . . . . . . . . . . Known Exits Taken 1 | . . . . 1 . . . . . . Unknown Exits Taken 6 | 1 1 1 1 . . 1 . . 1 . Scrap Searched . | . . . . . . . . . . . Spaces Dug . | . . . . . . . . . . . Terrain Destroyed 356 | . 3 . 70 . . 28 147 . 17 91 Melee . | . . . . . . . . . . . Projectile 25 | . . . 1 . . 5 9 . 5 5 AOE 331 | . 3 . 69 . . 23 138 . 12 86 Terrain Rammed . | . . . . . . . . . . . Walls Destroyed . | . . . . . . . . . . . Machines Disabled . | . . . . . . . . . . . Actions | -11 -10 -9 -8 -7 -7 -6 -5 -5 -5 -5 --------- Run | Yrd Mat Mat Mat Fac DSF Fac Fac Was Fac Ext Total 3541 | 61 84 144 335 180 148 492 810 182 638 467 Wait 358 | . 3 1 24 . 33 62 45 4 23 163 Move 2691 | 47 69 135 196 169 73 372 656 167 579 228 Hop . | . . . . . . . . . . . Pick Up 134 | 8 3 4 36 7 10 14 17 2 14 19 Fast Attach 16 | 2 . . . . . 5 6 2 1 . Attach 91 | 4 1 . 29 1 6 9 18 3 6 14 Detach . | . . . . . . . . . . . Swap 19 | . . 2 2 . 1 2 3 . 2 7 Drop 35 | . . 2 1 3 4 9 8 4 4 . Fire 188 | . 8 . 47 . 20 19 55 . 9 30 Melee 1 | . . . . . 1 . . . . . Ram 1 | . . . . . . . 1 . . . Kick 1 | . . . . . . . . . . 1 Crush 1 | . . . . . . . 1 . . . Escape Stasis 5 | . . . . . . . . . . 5 Rewire . | . . . . . . . . . . . Trap . | . . . . . . . . . . . Miscellaneous . | . . . . . . . . . . . Route ------- -11/Scrapyard -10/Materials -9/Materials -8/Materials -7/Factory -7/DSF -6/Factory -5/Factory -5/Waste -5/Factory -5/Extension History --------- Turn | Location | Event 4 | -11/Scrapyard | Discovered new exit (range 15) 82 | -11/Scrapyard | Entered Materials 209 | -10/Materials | Discovered new exit (range 11) 224 | -10/Materials | Entered another Materials area 224 | -9/Materials | Evolved 2 slots: Propulsion x2 313 | -9/Materials | Build established: Mutant 392 | -9/Materials | Discovered new exit (range 16) 465 | -9/Materials | Entered another Materials area 465 | -8/Materials | Evolved 2 slots: Propulsion x1, Utility x1 817 | -8/Materials | Lost 10 parts (2p3n1u4w) 892 | -8/Materials | Core integrity fell below 50% 938 | -8/Materials | Lost 13 parts (2p6n5w) 963 | -8/Materials | Discovered new exit (range 12) 993 | -8/Materials | Entered Factory 993 | -7/Factory | Evolved 2 slots: Power x1, Weapon x1 1206 | -7/Factory | Identified exit to DSF 1206 | -7/Factory | Entered DSF 1244 | -7/DSF | Additional patrols routed to DSF 1259 | -7/DSF | Build established: Scavenger-Mutant 1278 | -7/DSF | Lost 3 parts (1p1n1w) 1381 | -7/DSF | Core integrity fell below 50% 1384 | -7/DSF | Discovered new exit (range 15) 1401 | -7/DSF | Lost 9 parts (1p5n3w) 1408 | -7/DSF | Entered Factory 1408 | -6/Factory | Evolved 2 slots: Utility x1, Weapon x1 1611 | -6/Factory | Build established: Mutant 1949 | -6/Factory | Build established: Gunner 1987 | -6/Factory | Discovered new exit (range 15) 2026 | -6/Factory | Entered another Factory area 2026 | -5/Factory | Evolved 2 slots: Utility x1, Weapon x1 2039 | -5/Factory | Identified exit to DSF 2499 | -5/Factory | Lost 10 parts (3p3n4w) 2986 | -5/Factory | Destroyed 7 combat bots 3112 | -5/Factory | Garrison activated, responded to threat 3242 | -5/Factory | Lost 13 parts (2p4n1u6w) 3273 | -5/Factory | Core integrity fell below 50% 3273 | -5/Factory | Sucked down chute 3273 | -5/Factory | Entered Waste 3274 | -5/Waste | Joined by Warlord forces that had cleared the area 3442 | -5/Waste | Discovered new exit (range 11) 3507 | -5/Waste | Entered Factory 3507 | -5/Factory | Accompanied by 17 allies 3560 | -5/Factory | Spotted B-75 Beast 3574 | -5/Factory | Allies destroyed B-75 Beast 3646 | -5/Factory | Build established: Scavenger-Bomber 4252 | -5/Factory | Lost 5 allies 4407 | -5/Factory | Build established: Scavenger-Mutant 4412 | -5/Factory | System corruption reached 10% 4438 | -5/Factory | Lost 4 allies 4507 | -5/Factory | Discovered new exit (range 5) 4512 | -5/Factory | Entered Extension 4751 | -5/Extension | Build established: Scavenger-Gunner 4901 | -5/Extension | Rescued a captive Derelict 4903 | -5/Extension | Rescued a captive Derelict 4942 | -5/Extension | Core integrity fell below 20% 5103 | -5/Extension | Rescued a captive Derelict 5223 | -5/Extension | Rescued a captive Derelict 5224 | -5/Extension | Rescued a captive Derelict 5293 | -5/Extension | Spotted B-75 Beast 5334 | -5/Extension | Lost 3 parts (1n2w) 5334 | -5/Extension | Destroyed B-75 Beast 5336 | -5/Extension | Lost 3 allies 5355 | -5/Extension | Destroyed 7 combat bots 5356 | -5/Extension | Spotted B-75 Beast 5388 | -5/Extension | Destroyed by B-75 Beast with Heavy Machine Gun Last Messages --------------- 05367_ C-30 ARC bursts open, deploying its payload. 05367_ H-66 Slayer unfolds itself. 05367_ Slug penetrates Earth. 05367_ Carbon-fiber Leg destroyed. 05367_ Slug penetrates Machine. 05367_ Smartbomb Launcher destroyed. 05370_ Bore Cannon destroyed. 05370_ Slug penetrates Machine. 05377_ U-05 Engineer destroyed. 05381_ R-10 Processor collects Structural Scanner. 05382_ Slug penetrates Earth. 05382_ Neutrino Core destroyed. 05383_ Slug penetrates R-10 Processor. 05383_ Penetrated by Slug. 05383_ R-10 Processor collects Welding Torch. 05385_ Penetrated by Slug. 05388_ W-25 Informer destroyed. [Achievement: 10k Club] Map ----- +----------------------------------------------------+ | ^ + / #??????# T#?????# #??????????? | | ###################??????## ##?????# #??????????? | | #?????????????????????????# #??????# #??????????? | | #?????????????????????????####??????# #??????????? | | ????????????????????????????????????# #??????????? | | ????????????????????????????????????# #??????????? | | ????????????????????????????????????# #??????????? | | ????????????????????????????????????# #??????????? | | ??????????????????????????????????### #??????????? | | ??????????????????????????????????###%##?????????? | | ??????????????????????????????????" %#####??????? | | ?????????????????????????????????## # # #??????? | | ?????????????????????????????????####=#%###??????? | | ????????????????????????????????## ##?????? | | ????????????????????????????????# # # ##????? | | ???????????????????????????????## # ### #????? | | ??????????????????????????????? # ## # ###???? | | ???????????????????????????????# # # ###?? | | ???????????????????????????????# # % "" ? | | ???????????????????????????????# """ | | ???????????????????????????????# # "%" | | ???????????????????????????????# % " | | ???????????###################### | | ?????????? % BB R | | ?????????? =% BB | | ?????????? k @ * | | ?????????? R R % R | | ?????????? RRk RR ktu uR ut ? | | ???????????######################## ? | | ??????????????????????????????????# ? | | ??????????????????????????????????# ?? | | ??????????????????????????????????# ?? | | ??????????????????????????????????? ??? | | ???????????????????????????????????#####T#"""##??? | | ????????????????????????????????????????##???????? | | ?????????????????????????????????????????????????? | | | | | | | | | | | | | | | | | | | | | | | | | | | | | +----------------------------------------------------+ Best States ------------- Heat Dissipation 54 Coolant Potential 50 Energy Generation 33 Energy Capacity 530 Matter Stores 300 Matter Capacity 300 Sight Range 16 Terrain Scan Density 10 Jamming Range 14 Additional Mass Support 9 Evasion (%) 55 Targeting Accuracy 6 Core Analysis 6 Recoil Reduction 5 Offensive Hacking 12 Item Schematics ----------------- Grenade Launcher | -9/Materials | Scanalyzed Arm. Treads | -6/Factory | Scanalyzed Robot Schematics ------------------ None Fabricated ------------ Nothing Alien Tech Used ----------------- None Achievements -------------- 10k Club No Signal We Are Legion Challenges ------------ None Game ------ Seed GravityParticleAirjet Manual? 0 Play Time 01:16:11 Cumulative 18.2 hours Start 2024.07.04 @ 17:56:31 End 2024.07.04 @ 19:18:55 Sessions 1 Manual Loads 0 Difficulty Rogue Special Mode None Game No. 39 Rogue 39 Adventurer 0 Explorer 0 Win Type - Total 0 Types 0/0/0/0/0/0/0/0/0 Lore% 18 Gallery% 24 Achievement% 17 Wizard Run 0 Options --------- Layout 1 ASCII 0 Keyboard 0 Movement Mouse Keybinds 0 Fullscreen 1 Font 24/Smallcaps Map View 50x40 Zoom Use 0% Tactical HUD 1 Map Filters NONE Filters NONE Steam 1 RUN: 110a8ad8-ca8e-486f-b288-079f43ebef8f